Cogmind - Beta 14 @@@ ROGUE MODE // 2024.08.25 @ 02:53:38 Player: Zaros426 Result: Destroyed by DAS Turret with DAS Cannon Performance ------------- Evolutions (1) 500 Regions Visited (5) 1000 Robots Destroyed (100) 500 Value Destroyed (2208) 2208 Prototype IDs (35) 700 Alien Tech Used (0) 0 Bonus (-289) -289 TOTAL SCORE: 4619 Bonus ------- High Alert Combat Kills 115 Follower Combat Kills 145 Aligned with FarCom 300 Friendly Fire -849 Cogmind --------- Core Integrity 0/400 Matter 288/300 Energy 265/265 System Corruption 0% Temperature Cool (0) Movement Treading (560) Ox5 Location -9/Exiles Parts ------- > --- POWER (1) -------- Reinforced Ion Engine > --- PROPULSION (3) --- Light Treads > --- UTILITY (3) ------ Huge Storage Unit Improved Targeting Computer Hardened Medium Armor Plating > --- WEAPON (2) ------- Improved Light Cannon Improved Light Cannon > --- INVENTORY (25) --- Reinforced Ion Engine Light Treads Improved Treads Cooling System Huge Storage Unit Structural Scanner Experimental Sensor Array Signal Interpreter Signal Interpreter Improved Terrain Scanner Light Armor Plating Hardened Light Armor Plating Hardened Medium Armor Plating Shield Generator Latent Energy Streamer Particle Cannon Firepult Grenade Launcher Improved Datajack Plasma Cutter Peak State ------------ > --- POWER ------------ Reinforced Ion Engine > --- PROPULSION ------- Light Treads Light Treads Armored Wheel > --- UTILITY ---------- Huge Storage Unit Improved Targeting Computer Light Armor Plating > --- WEAPON ----------- Firepult > --- INVENTORY -------- Reinforced Ion Engine Light Treads Improved Treads Cooling System Huge Storage Unit Structural Scanner Experimental Sensor Array Signal Interpreter Signal Interpreter Improved Terrain Scanner Light Armor Plating Hardened Light Armor Plating Hardened Medium Armor Plating Hardened Medium Armor Plating Shield Generator Latent Energy Streamer Particle Cannon Improved Light Cannon Improved Datajack Plasma Cutter Deploy-a-Sentry Deploy-a-Sentry Deploy-a-Sentry [Rating: 37] Favorites ----------- Power Ion Engine Engine Ion Engine Power Core Nuclear Core Propulsion Light Treads Treads Light Treads Wheel Armored Wheel Hover Unit Aerolev Unit Utility Huge Storage Unit Device Cooling System Storage Huge Storage Unit Processor Targeting Computer Protection Light Armor Plating Weapon Improved Light Cannon Energy Gun Spread Laser Energy Cannon Beam Cannon Ballistic Gun Heavy Battle Rifle Ballistic Cannon Improved Light Cannon Launcher Grenade Launcher Special Weapon Mining Laser Special Melee Weapon Improved Datajack Build | -11 -10 -10 -9 -9 -9 ------- Run | Yrd Mat Min Mat Min Exi Slots Evolved 2 | . . . 2 . . Power . | . . . . . . Propulsion 1 | . . . 1 . . Utility 1 | . . . 1 . . Weapon . | . . . . . . Parts Attached 90 | 7 19 6 42 8 8 Power 9 | 1 1 . 4 3 . Engine 7 | 1 1 . 2 3 . Core 2 | . . . 2 . . Reactor . | . . . . . . Propulsion 25 | 2 5 4 12 1 1 Treads 15 | 2 2 2 8 . 1 Leg . | . . . . . . Wheel 8 | . 3 2 2 1 . Hover 2 | . . . 2 . . Flight . | . . . . . . Utility 21 | 2 3 . 11 4 1 Device 6 | 1 1 . 2 2 . Storage 3 | 1 1 . 1 . . Processor 3 | . 1 . 1 1 . Hackware . | . . . . . . Protection 9 | . . . 7 1 1 Artifact . | . . . . . . Weapon 35 | 2 10 2 15 . 6 Energy Gun 9 | . 4 . 5 . . Energy Cannon 2 | . . . 1 . 1 Ballistic Gun 5 | 2 1 . 2 . . Ballistic Cannon 15 | . 4 2 5 . 4 Launcher 1 | . . . . . 1 Special Weapon 2 | . 1 . 1 . . Impact Weapon . | . . . . . . Slashing Weapon . | . . . . . . Piercing Weapon . | . . . . . . Special Melee Weapon 1 | . . . 1 . . Unidentified Prototypes 2 | . . . 1 1 . Parts Lost 11 | . 1 2 6 . 2 Power 1 | . . . 1 . . Propulsion 4 | . . . 2 . 2 Utility 1 | . 1 . . . . Weapon 5 | . . 2 3 . . Highest Loss Streak 2 | . 1 2 2 . 1 To Critical Strikes . | . . . . . . Average Slot Usage (%) 98 | . 98 99 97 99 98 Engine 9 | . 14 14 4 11 11 Core 2 | . . . 6 . . Treads 16 | . 15 14 13 18 20 Wheel 14 | . 12 13 19 14 11 Device 3 | . 4 . 3 7 . Storage 12 | . 14 14 11 11 11 Processor 8 | . 8 14 7 3 11 Protection 6 | . . . 9 11 11 Energy Gun 9 | . 6 6 10 22 2 Ballistic Gun 2 | . 5 . 4 . . Ballistic Cannon 11 | . 14 21 6 . 18 Peak Build Rating 37 | 7 12 12 22 25 37 Average Rating 17 | 4 10 11 20 20 22 On Entrance 11 | . 7 12 12 18 19 Naked Turns . | . . . . . . Heaviest Build 115 | 14 93 93 103 99 115 Greatest Support 40 | 40 40 16 40 22 40 Greatest Overweight (x) 9 | . 5 5 8 8 9 Average Overweight (x) 5 | . 4 5 4 6 6 Largest Inventory Capacity 25 | 8 25 25 25 25 25 Average Capacity 24 | 6 24 25 25 25 25 Most Carried 25 | 4 23 24 25 25 25 Average Carried 21 | 1 14 22 23 24 24 Final Capacity 25 | 8 25 25 25 25 25 Final Carried 25 | 4 20 22 25 25 21 Class Distribution -------------------- 100% | Mutant Dominant Class ---------------- Mutant | -10/Materials Mutant | -10/Mines Mutant | -9/Materials Mutant | -9/Mines Mutant | -9/Exiles Resources | -11 -10 -10 -9 -9 -9 ----------- Run | Yrd Mat Min Mat Min Exi Matter Collected 2146 | 289 484 316 861 90 106 Remotely . | . . . . . . Salvage Created 2739 | 49 467 280 1647 191 105 Parts 210 | 5 37 25 120 23 . Haulers Intercepted 4 | . 2 . 2 . . Recyclers Shooed 1 | . . . 1 . . Parts Field Recycled . | . . . . . . Retrieved Matter . | . . . . . . Parts Self-Destructed . | . . . . . . Prevented . | . . . . . . Kills | -11 -10 -10 -9 -9 -9 ------- Run | Yrd Mat Min Mat Min Exi Combat Hostiles Destroyed 53 | . 9 6 36 2 . Guns 34 | . 8 1 23 2 . Cannons 18 | . 1 5 12 . . AOE 1 | . . . 1 . . Classes Destroyed 12 | 1 6 1 2 1 1 Worker 20 | . 3 4 9 4 . Builder 5 | . . 1 2 2 . Tunneler 8 | 3 1 1 . 3 . Hauler 4 | . 2 . 2 . . Mechanic 1 | . . . . 1 . Operator 2 | . 1 . 1 . . Watcher 7 | . 3 . 4 . . Swarmer 7 | . 3 . 4 . . Grunt 36 | . 6 6 22 2 . Brawler 1 | . . . 1 . . Sentry 9 | . . . 9 . . Assembled 6 | . . . . . 6 Best Kill Streak 4 | 3 3 3 4 2 . Combat Bots Only 4 | . 3 2 4 1 . Max Kills in Single Turn 6 | 1 2 1 2 2 6 Gunslinging . | . . . . . . Exploded 1 | . . . 1 . . Melee . | . . . . . . Uniques/NPCs Destroyed 2 | . . . . . 2 EX-HEX (-9/Exiles) 8R-AWN (-9/Exiles) Combat | -11 -10 -10 -9 -9 -9 -------- Run | Yrd Mat Min Mat Min Exi Hostile Shots Fired 283 | . 43 33 158 22 27 Missed 60 | . 13 6 32 5 4 Damage Taken 3329 | . 392 399 1612 188 738 Core 650 | . 107 100 213 57 173 Absorbed by Shields . | . . . . . . Core Remaining (%) 58 | 100 . 17 . . . Volleys Fired 238 | 12 50 36 114 19 7 Largest 2 | 2 2 2 2 2 2 Hottest 250 | 40 130 90 130 130 250 Shots Fired 450 | 24 96 66 213 38 13 Gun 269 | 24 61 13 133 38 . Cannon 179 | . 33 53 80 . 13 Launcher . | . . . . . . Special 2 | . 2 . . . . Kinetic 304 | 24 82 53 133 . 12 Thermal 97 | . 6 . 52 38 1 Explosive . | . . . . . . Electromagnetic 49 | . 8 13 28 . . Robot Hit Streak 29 | 8 15 12 29 20 8 Robot Miss Streak 11 | 3 3 4 8 11 2 Penetration Max . | . . . . . . Secondary Targets 1 | . 1 . . . . Max Gunslinging Chain 1 | . 1 . . . . Shots Hit Robots 306 | 17 62 40 148 30 9 Core Hits 222 | 4 26 18 111 48 15 Critical Kills . | . . . . . . Critical Parts Destroyed 2 | 1 1 . . . . Critical Strikes 9 | 1 3 2 3 . . Destroy 2 | 1 1 . . . . Blast 7 | . 2 2 3 . . Melee Attacks 1 | . . . 1 . . Impact . | . . . . . . Slashing . | . . . . . . Piercing . | . . . . . . Sneak Attacks 1 | . . . 1 . . Combat Hostiles . | . . . . . . Follow-up Attacks . | . . . . . . Damage Inflicted 5921 | 164 974 887 3015 460 421 Guns 3170 | 164 491 184 1871 460 . Cannons 2410 | . 459 631 1117 . 203 Explosions 317 | . . 72 27 . 218 Melee . | . . . . . . Ramming . | . . . . . . Kinetic 3777 | 164 836 631 1961 . 185 Thermal 1513 | . 68 72 677 460 236 Explosive . | . . . . . . Electromagnetic 631 | . 70 184 377 . . Impact . | . . . . . . Slashing . | . . . . . . Piercing . | . . . . . . Highest Corruption 3 | . 3 3 . . . Average Corruption 2 | . 2 3 . . . Corruption Purged . | . . . . . . Corruption Blocked . | . . . . . . Effects 41 | . 20 21 . . . Message Errors 9 | . 6 3 . . . Matter Fused 14 | . 7 7 . . . Heat Flow Errors 6 | . 2 4 . . . Energy Discharges 4 | . 2 2 . . . Data Loss (minor) 4 | . 1 3 . . . Data Loss (major) 3 | . 1 2 . . . Weapon Failures 1 | . 1 . . . . Overload Shots . | . . . . . . Overflow Damage 74 | . 16 23 35 . . Projectiles 74 | . 16 23 35 . . Explosions . | . . . . . . Melee . | . . . . . . Knockbacks 17 | . 4 8 4 . 1 Impact . | . . . . . . Kinetic 16 | . 4 8 3 . 1 Secondary 1 | . . . 1 . . Self-Inflicted Damage . | . . . . . . Shots . | . . . . . . Rammed . | . . . . . . Targets Rammed . | . . . . . . Kicked . | . . . . . . Crushed . | . . . . . . Highest Temperature 400 | . 262 369 400 98 218 Average Temperature 70 | . 34 103 73 29 101 Received Heat Transfer 1287 | . 180 303 669 108 27 Effects 5 | . . 3 2 . . Shutdowns 1 | . . 1 . . . Interference 2 | . . 1 1 . . Short Circuit 2 | . . 1 1 . . Siege Activations . | . . . . . . Robots Corrupted . | . . . . . . Combat Hostiles . | . . . . . . Parts Fried 3 | . . 2 1 . . Impact Corruptions . | . . . . . . Robots Melted 1 | . . . . . 1 Combat Hostiles . | . . . . . . Parts Melted . | . . . . . . Heat Transferred 3194 | . 161 100 923 570 1440 Parts Sabotaged . | . . . . . . Parts Stolen . | . . . . . . Parts Stripped . | . . . . . . Power Chain Reactions 1 | . . . 1 . . Alert | -11 -10 -10 -9 -9 -9 ------- Run | Yrd Mat Min Mat Min Exi Peak Influence 659 | 15 288 146 659 177 . Initial 172 | . 9 . 15 172 . Average 169 | 4 44 29 372 91 . Maximum Alert Level 2 | . 1 . 2 . . Low Security (%) 68 | 100 89 100 20 100 . Level 1 9 | . 10 . 19 . . Level 2 21 | . . . 60 . . Level 3 . | . . . . . . Level 4 . | . . . . . . Level 5 . | . . . . . . High Security . | . . . . . . Max Security . | . . . . . . Squads Dispatched 8 | . . . 7 1 . Investigation 5 | . . . 5 . . Extermination . | . . . . . . Reinforcement 2 | . . . 2 . . Assault 1 | . . . . 1 . Garrison . | . . . . . . Intercept . | . . . . . . Searches Triggered . | . . . . . . Construction Impeded . | . . . . . . Haulers Reinforced . | . . . . . . Active Scanning Responses . | . . . . . . Cargo Convoy Interrupts . | . . . . . . Stealth | -11 -10 -10 -9 -9 -9 --------- Run | Yrd Mat Min Mat Min Exi Distress Signals 2 | . 1 . 1 . . Communications Jammed . | . . . . . . Distress Signals . | . . . . . . Times Spotted 89 | . 18 7 54 8 2 Peak Tracking Total 6 | . 5 3 6 4 2 Tactical Retreats 7 | . 2 . 3 . 2 Traps | -11 -10 -10 -9 -9 -9 ------- Run | Yrd Mat Min Mat Min Exi Traps Triggered 3 | . 3 . . . . Indirectly . | . . . . . . Trap Hack Attempts . | . . . . . . Triggered . | . . . . . . Disarmed . | . . . . . . Reprogrammed . | . . . . . . Reused 4 | . . . 4 . . Traps Extracted . | . . . . . . Installed 4 | . . . 4 . . Triggered 4 | . . . 4 . . Most Traps Carried 4 | . . 4 4 . . Machines | -11 -10 -10 -9 -9 -9 ---------- Run | Yrd Mat Min Mat Min Exi Machines Disabled 13 | . 1 5 3 . 4 Max in Single Turn 3 | . 1 3 1 . 2 Machines Repaired . | . . . . . . Machines Dismantled . | . . . . . . Machines Sabotaged . | . . . . . . Overloaded Fab Kills . | . . . . . . Hacking | -11 -10 -10 -9 -9 -9 --------- Run | Yrd Mat Min Mat Min Exi Machines Accessed 19 | . 6 . 11 . 2 Terminals 15 | . 6 . 9 . . Fabricators . | . . . . . . Repair Stations . | . . . . . . Recycling Units . | . . . . . . Scanalyzers 2 | . . . 2 . . Garrison Access . | . . . . . . Total Hacks 96 | . 22 . 50 . 24 Successful 73 | . 16 . 33 . 24 Failed 22 | . 6 . 16 . . Catastrophic 2 | . 1 . 1 . . Database Lockouts 1 | . . . 1 . . Manual 36 | . 13 . 22 . 1 Terminals 61 | . 22 . 39 . . Fabricators . | . . . . . . Repair Stations . | . . . . . . Recycling Units . | . . . . . . Scanalyzers 11 | . . . 11 . . Garrison Access . | . . . . . . Terminal Hacks 59 | . 14 . 21 . 24 Record 23 | . . . . . 23 Part Schematic 1 | . . . 1 . . Robot Analysis 4 | . 3 . 1 . . Prototype ID Bank 10 | . 4 . 6 . . Level Access Points 1 | . 1 . . . . Branch Access Points 2 | . 1 . 1 . . Emergency Access Points 1 | . . . 1 . . Terminal Index 2 | . 1 . 1 . . Alert Level 2 | . . . 2 . . Unreport Threat 3 | . 1 . 2 . . Locate Traps 2 | . 1 . 1 . . Transport Status 2 | . 1 . 1 . . Recall Investigation 1 | . . . 1 . . Zone Layout 4 | . 1 . 3 . . Derelict Proto ID Bank 1 | . . . . . 1 Fabricator Hacks . | . . . . . . Repair Station Hacks . | . . . . . . Recycling Unit Hacks . | . . . . . . Scanalyzer 10 | . . . 10 . . Insert Component 5 | . . . 5 . . Analyze 5 | . . . 5 . . Garrison Access Hacks . | . . . . . . Unauthorized Hacks 4 | . 2 . 2 . . Terminals 4 | . 2 . 2 . . Botnet 4 | . 2 . 2 . . Fabricators . | . . . . . . Repair Stations . | . . . . . . Recycling Units . | . . . . . . Scanalyzers . | . . . . . . Garrison Access . | . . . . . . Data Cores Recovered 2 | . 1 . 1 . . Used 1 | . . . 1 . . Hacking Detections 16 | . 5 . 11 . . Full Trace Events 5 | . . . 5 . . Feedback Events . | . . . . . . Feedback Blocked . | . . . . . . Robot Schematics Acquired . | . . . . . . Robots Built . | . . . . . . Authchips . | . . . . . . Time . | . . . . . . Total Robot Build Rating . | . . . . . . Part Schematics Acquired 6 | . . . 6 . . Parts Built . | . . . . . . Authchips . | . . . . . . Time . | . . . . . . Total Part Build Rating . | . . . . . . Parts Repaired . | . . . . . . Time . | . . . . . . Parts Recycled . | . . . . . . Recycled Matter . | . . . . . . Retrieved Matter . | . . . . . . Retrieved Components . | . . . . . . Parts Scanalyzed 5 | . . . 5 . . Part Schematics Acquired 5 | . . . 5 . . Parts Damaged . | . . . . . . Bothacking | -11 -10 -10 -9 -9 -9 ------------ Run | Yrd Mat Min Mat Min Exi Used RIF Installer . | . . . . . . Robots Hacked 1 | . . . 1 . . Non-combat 1 | . . . 1 . . Combat . | . . . . . . Robot Hacks Applied 1 | . . . 1 . . parse_system 1 | . . . 1 . . Relay Couplers Released . | . . . . . . Fabnet Peak Effective % . | . . . . . . Robots Rewired . | . . . . . . Allies Hacked . | . . . . . . Hacks Repelled . | . . . . . . Allies | -11 -10 -10 -9 -9 -9 -------- Run | Yrd Mat Min Mat Min Exi Total Allies 6 | . . . . 6 . Largest Group 4 | . . . . 4 4 Highest-Rated Group 79 | . . . . 79 71 Highest-Rated Ally 31 | . . . . 31 31 Total Orders . | . . . . . . Ally Attacks 66 | . . . . 17 49 Total Damage 1188 | . . . . 232 956 Kills 8 | . . . . 5 3 Allies Corrupted . | . . . . . . Allies Melted 1 | . . . . . 1 Turrets Deployed 3 | . . . . . 3 Intel | -11 -10 -10 -9 -9 -9 ------- Run | Yrd Mat Min Mat Min Exi Robot Analysis Total 4 | . 3 . 1 . . Derelict Logs Recovered 3 | . . 2 . 1 . Drone Launches . | . . . . . . Drone Recoveries . | . . . . . . Exploration | -11 -10 -10 -9 -9 -9 ------------- Run | Yrd Mat Min Mat Min Exi Turns Passed 8732 | 137 1623 1393 2646 1517 1416 Spaces Moved 4306 | 60 798 718 1307 769 654 Core 5 | 5 . . . . . Treads 152 | 55 59 . . . 38 Legs . | . . . . . . Wheels 4149 | . 739 718 1307 769 616 Hover . | . . . . . . Flight . | . . . . . . Fastest Speed 50 | 50 160 175 123 145 145 Average Speed 177 | 150 175 175 163 185 204 Slowest Speed 560 | 160 320 175 210 210 560 Overloaded Moves . | . . . . . . Propulsion Burnouts . | . . . . . . Robots Hopped . | . . . . . . Cave-ins Triggered . | . . . . . . Exploration Rate (%) 81 | 4 99 100 95 99 90 Regions Visited 5 Branch Regions 3 Pre-discovered Areas 3 | . . 1 . 1 1 Known Exits Taken 3 | . 1 1 1 . . Unknown Exits Taken 2 | 1 . . . 1 . Scrap Searched 2 | . . 1 . 1 . Spaces Dug 2 | . 1 . 1 . . Terrain Destroyed 64 | . 2 40 13 . 9 Melee . | . . . . . . Projectile 16 | . 2 4 9 . 1 AOE 48 | . . 36 4 . 8 Terrain Rammed . | . . . . . . Walls Destroyed . | . . . . . . Machines Disabled . | . . . . . . Actions | -11 -10 -10 -9 -9 -9 --------- Run | Yrd Mat Min Mat Min Exi Total 4944 | 82 925 788 1602 820 727 Wait 165 | . 17 21 80 10 37 Move 4301 | 59 797 717 1306 768 654 Hop . | . . . . . . Pick Up 75 | 4 27 6 25 5 8 Fast Attach 26 | 7 1 . 14 4 . Attach 20 | . 2 3 9 . 6 Detach 2 | . 1 . 1 . . Swap 44 | . 16 3 19 4 2 Drop 68 | . 14 2 29 10 13 Fire 238 | 12 50 36 114 19 7 Melee 1 | . . . 1 . . Ram . | . . . . . . Kick . | . . . . . . Crush . | . . . . . . Escape Stasis . | . . . . . . Rewire . | . . . . . . Trap 4 | . . . 4 . . Miscellaneous . | . . . . . . Route ------- -11/Scrapyard -10/Materials (discovered 4 exits: *Mat x3 / *Min) -10/Mines (discovered 3 exits: *Mat x2 / [*Sub]) -9/Materials (discovered 5 exits: *Mat x3 / *Min x2) -9/Mines (discovered 3 exits: *Mat x2 / *Exi) -9/Exiles (discovered 1 exit: [*Min]) History --------- Turn | Location | Event 18 | -11/Scrapyard | Discovered new exit (range 15) 138 | -11/Scrapyard | Entered Materials 203 | -10/Materials | Discovered new exit (range 10) 212 | -10/Materials | Identified exit to Mines 301 | -10/Materials | Build established: Mutant 1053 | -10/Materials | Discovered new exit (range 9) 1095 | -10/Materials | Identified exit to Materials 1761 | -10/Materials | Entered Mines 1765 | -10/Mines | Met a Derelict bent on vengeance 1865 | -10/Mines | Found a hidden stash of uninstalled traps 2084 | -10/Mines | Core integrity fell below 50% 2130 | -10/Mines | Discovered new exit (range 15) 2170 | -10/Mines | Discovered exit to Materials (range 11) 2290 | -10/Mines | A weapon hastily lodged in a ceiling crevice suddenly fell to the ground 2421 | -10/Mines | Core integrity fell below 20% 2809 | -10/Mines | Discovered exit to Materials (range 6) 3154 | -10/Mines | Entered Materials 3154 | -9/Materials | Evolved 2 slots: Propulsion x1, Utility x1 3185 | -9/Materials | Identified exit to Mines 3530 | -9/Materials | Central database locked down 3835 | -9/Materials | Discovered new exit (range 15) 3891 | -9/Materials | Identified exit to Materials 4415 | -9/Materials | Discovered exit to Materials (range 5) 5175 | -9/Materials | Discovered exit to Materials (range 16) 5425 | -9/Materials | Core integrity fell below 50% 5800 | -9/Materials | Entered Mines 5861 | -9/Mines | Discovered exit to Materials (range 14) 5874 | -9/Mines | Found a damaged Exp. Sensor Array with a note attached 5879 | -9/Mines | Found Prototype Device 5879 | -9/Mines | Identified Exp. Sensor Array 6213 | -9/Mines | Met a Derelict testing a Signal Generator 6392 | -9/Mines | Learned location of Zion (-7) 6617 | -9/Mines | Discovered exit to Materials (range 14) 6681 | -9/Mines | Deemed a non-threat by the Exiles lab entrance 6683 | -9/Mines | Discovered new exit (range 5) 6758 | -9/Mines | Found DCF Scrap (14 items) 7123 | -9/Mines | Received a Rocket Launcher from a helpful Derelict 7239 | -9/Mines | Assisted by bots powering up and referring to "LRC-V3" 7317 | -9/Mines | Entered Exiles 7317 | -9/Exiles | Accompanied by 4 allies 7355 | -9/Exiles | Met 8R-AWN 7378 | -9/Exiles | Met EX-HEX 7423 | -9/Exiles | Met EX-BIN 7442 | -9/Exiles | Aligned with FarCom system 7444 | -9/Exiles | Given EX-Vault access code 7478 | -9/Exiles | Opened EX-Vault 7492 | -9/Exiles | Found Deploy-a-Sentry 7495 | -9/Exiles | Found Deploy-a-Sentry 7497 | -9/Exiles | Found Deploy-a-Sentry 7505 | -9/Exiles | Found Latent Energy Streamer 7508 | -9/Exiles | Found Firepult 7554 | -9/Exiles | Warned to stay clear of 0b10 Research branches 7665 | -9/Exiles | Met EX-DEC 7792 | -9/Exiles | Visited The Gauntlet 8137 | -9/Exiles | Discovered new exit (range 14) 8397 | -9/Exiles | Attacked by the Exiles 8400 | -9/Exiles | DAS Turret deployed 8400 | -9/Exiles | Allies destroyed EX-HEX 8413 | -9/Exiles | DAS Turret deployed 8418 | -9/Exiles | DAS Turret deployed 8422 | -9/Exiles | Murdered 5 allies 8441 | -9/Exiles | Allies destroyed 8R-AWN 8450 | -9/Exiles | Lost 4 allies 8576 | -9/Exiles | Core integrity fell below 20% 8733 | -9/Exiles | Destroyed by DAS Turret with DAS Cannon Last Messages --------------- 08421_ Critical hit (Destroy). 08421_ Penetrated by HV Slug. 08421_ Critical hit (Destroy). 08421_ 8R-AWN knocked back. 08423_ Penetrated by HV Slug. 08431_ Destroyed Prototype Protection. 08432_ Penetrated by HV Slug. 08441_ 8R-AWN destroyed. 08463_ Acquired 11 matter. 08467_ Acquired 10 matter. 08469_ Acquired 13 matter. 08471_ Acquired 17 matter. 08475_ Acquired 2 matter. 08484_ Acquired 10 matter. 08488_ Acquired 2 matter. 08578_ Acquired 5 matter. 08578_ Arm. Wheel destroyed. 08580_ Dropped Lgt. Armor Plating. 08584_ Trooper 2b destroyed. 08731_ Lgt. Treads destroyed. Map ----- +----------------------------------------------------+ | ???????????# ""#????????#" """""""""#?????? | | ##?????????#"" ""#???????##" ###########?????? | | ##????????### ###??????##"" #???????????????? | | ######???### ###?######"" #???????????????? | | """#####X# #"###""""""" ##??????????????? | | """""" " "" ##???########### | | "" """ " #####"""""""""# | | " " % " """ """" | | # "" " | | ### " "" | | ??## [%!% "a | | ???## " | | ????##" | | ?????#""" """""" ! | | ????##" ######""" !t | | ????#"" ""##????#####""" !!% | | ???##""" """##?????????##""" !! | | ???#""" """##???????????#"""" *! | | ???#""" ""#???????????##"" t! | | ???#"" ;#######??####"""" t | | ???#""" ##aaa####""" | | ???#"" """" | | ???##"" | | ????#"""" | | ????## % % | | ?????#" @"% "" """% | | ?????#"""" ""## ##""" " " ""#" %% | | ?????#"" ""#### ######""" """##" | | ?????#" """"##??# #????###""""##### | | ?????#""" """#???# #??????######???# | | ?????## ""##??#! "??????????????### | | ??????#"" """##???#" !#??????????????? | | ??????##""" ##????#" "#??????????????? | | ???????##"""" ##?????#!!""!"#??????????????? | | ????????### #??????########??????????????? | | ??????????##### ##????????????????????????????? | | ??????????????## #?????????????????????????????? | | ???????????????# #?????????????????????????????? | | ???????????????# #?????????????????????????????? | | ???????????????# #?????????????????????????????? | | ?????#####?????# #?????????????????????????????? | | "???#""""""????# #?????????????????????????????? | | "???#"""""""#??# #?????????????????????????????? | | "#??#" """"#??# #?????????????????????????????? | | "???#"" """#??# #?????????????????????????????? | | "????"" ""???# #?????????????????????????????? | | #######"""###### ########??????????????????????? | | """"""" """""" """""""#??????????????????????? | | """""" "#"" "??????????????????? | | " "??????????????????? | +----------------------------------------------------+ Best States ------------- Heat Dissipation 50 Energy Generation 14 Energy Capacity 265 Matter Stores 300 Matter Capacity 300 Sight Range 16 Robot Scan Range 20 Terrain Scan Density 10 Armor Coverage 225 Evasion (%) 40 Targeting Accuracy 6 Recoil Reduction 2 Item Schematics ----------------- Cooling System | -9/Materials | Hacked Imp. Datajack | -9/Materials | Scanalyzed Structural Scanner | -9/Materials | Scanalyzed Hrd. Medium Armor Plating | -9/Materials | Scanalyzed Signal Interpreter | -9/Materials | Scanalyzed Plasma Cutter | -9/Materials | Scanalyzed Robot Schematics ------------------ None Fabricated ------------ Nothing Alien Tech Used ----------------- None Achievements -------------- None Challenges ------------ None Game ------ Seed CargoTargetingWarhead Manual? 0 Play Time 00:52:16 Cumulative 29.9 hours Start 2024.08.25 @ 02:02:42 End 2024.08.25 @ 02:53:38 Sessions 1 Manual Loads 0 Difficulty Rogue Special Mode None Game No. 17 Rogue 17 Adventurer 0 Explorer 0 Win Type - Total 0 Types 0/0/0/0/0/0/0/0/0 Lore% 29 Gallery% 40 Achievement% 37 Wizard Run 0 Options --------- Layout 0 ASCII 0 Keyboard 0 Movement Mouse Keybinds 0 Fullscreen 1 Font 24/Smallcaps Map View 183x50 Zoom Use 0% Tactical HUD 1 Map Filters NONE Filters NONE Steam 0 RUN: 4cb4194f-2fe3-435d-abea-f1f5c7d52b8c